[Event "Vienna Chess Open 2019"]
[Site "Vienna"]
[Date "2019.08.20"]
[Round "5.12"]
[White "Heinatz, Gundula"]
[Black "Schreiner, Peter"]
[Result "1/2-1/2"]
[ECO "A48"]
[WhiteElo "2124"]
[BlackElo "2481"]
[Annotator "ChessBase"]
[PlyCount "50"]
[EventDate "2019.08.17"]
[EventType "swiss"]
[EventCountry "AUT"]
[SourceTitle "playchess.com"]
[Source "ChessBase"]
[SourceQuality "1"]
[TimeControl "40/5400+30:1800+30"]

1. d4 {[%emt 0:00:00]} Nf6 {[%emt 0:00:57]} 2. Nf3 {[%emt 0:00:00]} g6 {[%emt 0:00:06]} 3. Bg5 {[%emt 0:00:00]} Bg7 {[%emt 0:03:08]} 4. c3 {[%emt 0:00:05]} O-O {[%emt 0:00:34]} 5. Nbd2 {[%emt 0:00:06]} d5 {[%emt 0:00:16]} 6. e3 {[%emt 0:00:18]} Nbd7 {[%emt 0:01:01]} 7. Bd3 {[%emt 0:01:41]} Re8 {[%emt 0:01:57]} 8. O-O {[%emt 0:00:07]} e5 {[%emt 0:00:15]} 9. e4 {[%emt 0:01:03]} exd4 {[%emt 0:03:37]} 10. cxd4 {[%emt 0:00:17]} dxe4 {[%emt 0:05:02]} 11. Nxe4 {[%emt 0:00:13]} h6 {[%emt 0:00:28]} 12. Qb3 {[%emt 0:00:23]} Re6 {[%emt 0:07:00]} 13. Rae1 {[%emt 0:54:32]} Qf8 {[%emt 0:15:27]} 14. Nxf6+ {[%emt 0:03:14]} Nxf6 {[%emt 0:00:39]} 15. Bxf6 {[%emt 0:00:36]} Rxf6 {[%emt 0:06:06]} 16. Bc4 {[%emt 0:02:20]} Rb6 {[%emt 0:12:14]} 17. Qe3 {[%emt 0:00:13]} Be6 {[%emt 0:04:30]} 18. d5 {[%emt 0:03:33]} Bd7 {[%emt 0:02:14]} 19. Ne5 {[%emt 0:05:46]} Bb5 {[%emt 0:03:32]} 20. b3 {[%emt 0:03:10]} Re8 {[%emt 0:05:22]} 21. Qg3 {[%emt 0:00:19]} Qd6 {[%emt 0:03:43]} 22. f4 {[%emt 0:04:25]} Qc5+ {[%emt 0:05:50]} 23. Kh1 {[%emt 0:00:06]} Bxc4 {[%emt 0:01:16]} 24. bxc4 {[%emt 0:00:06]} Rd6 {[%emt 0:07:35]} 25. h4 {[%emt 0:00:30]} Rf8 {[%emt 0:04:50]} 1/2-1/2

[Event "Vienna Chess Open 2019"]
[Site "Vienna"]
[Date "2019.08.21"]
[Round "6.1"]
[White "Palac, Mladen"]
[Black "Bick, Gabriel"]
[Result "1/2-1/2"]
[ECO "C78"]
[WhiteElo "2551"]
[BlackElo "2375"]
[Annotator "ChessBase"]
[PlyCount "67"]
[EventDate "2019.08.17"]
[EventType "swiss"]
[EventCountry "AUT"]
[SourceTitle "playchess.com"]
[Source "ChessBase"]
[SourceQuality "1"]
[TimeControl "40/5400+30:1800+30"]

1. e4 {[%emt 0:08:10]} e5 {[%emt 0:00:00]} 2. Nf3 {[%emt 0:00:07]} Nc6 {[%emt 0:00:00]} 3. Bb5 {[%emt 0:00:01]} a6 {[%emt 0:00:00]} 4. Ba4 {[%emt 0:00:01]} Nf6 {[%emt 0:00:03]} 5. O-O {[%emt 0:00:04]} Bc5 {[%emt 0:00:07]} 6. c3 {[%emt 0:00:23]} b5 {[%emt 0:00:07]} 7. Bb3 {[%emt 0:01:14]} d6 {[%emt 0:00:09]} 8. a4 {[%emt 0:00:04]} Rb8 {[%emt 0:00:06]} 9. d4 {[%emt 0:02:35]} Bb6 {[%emt 0:00:07]} 10. a5 {[%emt 0:00:41]} Ba7 {[%emt 0:00:08]} 11. h3 {[%emt 0:03:25]} O-O {[%emt 0:00:10]} 12. Re1 {[%emt 0:16:50]} h6 {[%emt 0:06:43]} 13. Be3 {[%emt 0:01:27]} Ra8 {[%emt 0:01:16]} 14. Nbd2 {[%emt 0:00:32]} Re8 {[%emt 0:01:41]} 15. Qc2 {[%emt 0:00:04]} exd4 {[%emt 0:01:55]} 16. Bxd4 {[%emt 0:00:14]} Ne5 {[%emt 0:00:35]} 17. Nxe5 {[%emt 0:01:08]} dxe5 {[%emt 0:00:11]} 18. Bxa7 {[%emt 0:00:03]} Rxa7 {[%emt 0:00:01]} 19. c4 {[%emt 0:00:06]} c5 {[%emt 0:05:04]} 20. cxb5 {[%emt 0:18:11]} axb5 {[%emt 0:01:08]} 21. Qxc5 {[%emt 0:00:17]} Rxa5 {[%emt 0:00:20]} 22. Rad1 {[%emt 0:01:31]} Qe7 {[%emt 0:06:00]} 23. Rc1 {[%emt 0:02:35]} Be6 {[%emt 0:14:47]} 24. Qxe5 {[%emt 0:31:09]} Bxb3 {[%emt 0:00:10]} 25. Qxe7 {[%emt 0:00:02]} Rxe7 {[%emt 0:00:01]} 26. Nxb3 {[%emt 0:00:01]} Ra2 {[%emt 0:00:40]} 27. e5 {[%emt 0:02:50]} Rxb2 {[%emt 0:00:28]} 28. Nd4 {[%emt 0:00:38]} Nd5 {[%emt 0:05:50]} 29. Rc5 {[%emt 0:06:32]} Nf4 {[%emt 0:00:22]} 30. Rxb5 {[%emt 0:00:34]} Rxb5 {[%emt 0:00:12]} 31. Nxb5 {[%emt 0:00:01]} Nd3 {[%emt 0:00:12]} 32. Re3 {[%emt 0:00:04]} Rxe5 {[%emt 0:00:07]} 33. Rxd3 {[%emt 0:00:08]} Rxb5 {[%emt 0:00:03]} 34. Kh2 {[%emt 0:00:03]} 1/2-1/2

[Event "Vienna Chess Open 2019"]
[Site "Vienna"]
[Date "2019.08.21"]
[Round "6.1"]
[White "Dobrovoljc, Vid"]
[Black "Janik, Igor"]
[Result "1-0"]
[ECO "B13"]
[WhiteElo "2331"]
[BlackElo "2483"]
[Annotator "ChessBase"]
[PlyCount "103"]
[EventDate "2019.08.17"]
[EventType "swiss"]
[EventCountry "AUT"]
[SourceTitle "playchess.com"]
[Source "ChessBase"]
[SourceQuality "1"]
[TimeControl "40/5400+30:1800+30"]

1. e4 {[%emt 0:00:03]} c6 {[%emt 0:00:00]} 2. d4 {[%emt 0:01:09]} d5 {[%emt 0:00:00]} 3. exd5 {[%emt 0:01:24]} cxd5 {[%emt 0:00:00]} 4. Nf3 {[%emt 0:00:09]} Nc6 {[%emt 0:00:00]} 5. Ne5 {[%emt 0:00:33]} e6 {[%emt 0:00:24]} 6. Bb5 {[%emt 0:01:44]} Bd7 {[%emt 0:00:10]} 7. Nxd7 {[%emt 0:00:21]} Qxd7 {[%emt 0:00:09]} 8. c3 {[%emt 0:00:19]} Bd6 {[%emt 0:01:41]} 9. Nd2 {[%emt 0:01:01]} Nf6 {[%emt 0:01:26]} 10. O-O {[%emt 0:02:38]} O-O {[%emt 0:00:23]} 11. Ba4 {[%emt 0:06:08]} Qc7 {[%emt 0:04:15]} 12. g3 {[%emt 0:01:57]} Rab8 {[%emt 0:02:13]} 13. Qe2 {[%emt 0:10:25]} h6 {[%emt 0:04:08]} 14. Nf3 {[%emt 0:09:10]} Rfc8 {[%emt 0:06:07]} 15. Re1 {[%emt 0:03:12]} a6 {[%emt 0:02:34]} 16. Bc2 {[%emt 0:02:34]} b5 {[%emt 0:00:35]} 17. Bd3 {[%emt 0:00:19]} Qb6 {[%emt 0:06:00]} 18. Ne5 {[%emt 0:02:45]} Rc7 {[%emt 0:06:01]} 19. a3 {[%emt 0:06:29]} a5 {[%emt 0:01:57]} 20. b4 {[%emt 0:09:35]} Bf8 {[%emt 0:08:55]} 21. Bf4 {[%emt 0:04:22]} Nd8 {[%emt 0:08:50]} 22. bxa5 {[%emt 0:10:19]} Qxa5 {[%emt 0:00:15]} 23. Nf3 {[%emt 0:05:25]} Rbc8 {[%emt 0:00:52]} 24. Bxc7 {[%emt 0:01:55]} Rxc7 {[%emt 0:00:05]} 25. Bxb5 {[%emt 0:00:40]} Bxa3 {[%emt 0:00:48]} 26. c4 {[%emt 0:01:32]} dxc4 {[%emt 0:02:16]} 27. Bxc4 {[%emt 0:00:12]} Qc3 {[%emt 0:03:20]} 28. Ne5 {[%emt 0:03:27]} Nc6 {[%emt 0:01:40]} 29. Qd3 {[%emt 0:04:46]} Qxd3 {[%emt 0:01:06]} 30. Bxd3 {[%emt 0:00:05]} Bf8 {[%emt 0:00:46]} 31. Ra8 {[%emt 0:05:16]} Nxd4 {[%emt 0:01:49]} 32. Rb1 {[%emt 0:00:38]} g6 {[%emt 0:00:08]} 33. Rbb8 {[%emt 0:00:45]} Nh7 {[%emt 0:00:01]} 34. Nxg6 {[%emt 0:02:11]} fxg6 {[%emt 0:04:11]} 35. Bxg6 {[%emt 0:00:19]} Nf6 {[%emt 0:01:22]} 36. Rxf8+ {[%emt 0:01:44]} Kg7 {[%emt 0:00:01]} 37. Bd3 {[%emt 0:01:17]} Nf3+ {[%emt 0:01:55]} 38. Kf1 {[%emt 0:00:09]} Nxh2+ {[%emt 0:00:19]} 39. Kg2 {[%emt 0:00:26]} Nhg4 {[%emt 0:00:11]} 40. Rfc8 {[%emt 0:01:36]} Rd7 {[%emt 0:00:43]} 41. Rd8 {[%emt 0:30:58]} Rc7 {[%emt 0:30:14]} 42. Ra6 {[%emt 0:00:00]} e5 {[%emt 0:00:00]} 43. Bf5 {[%emt 0:00:00]} h5 {[%emt 0:00:00]} 44. Rdd6 {[%emt 0:00:00]} e4 {[%emt 0:00:00]} 45. Bxg4 {[%emt 0:00:00]} Nxg4 {[%emt 0:00:00]} 46. Rd5 {[%emt 0:00:00]} e3 {[%emt 0:00:00]} 47. Rg5+ {[%emt 0:00:00]} Kf8 {[%emt 0:00:00]} 48. fxe3 {[%emt 0:00:00]} Rc2+ {[%emt 0:00:00]} 49. Kf3 {[%emt 0:00:00]} Rf2+ {[%emt 0:00:00]} 50. Ke4 {[%emt 0:00:00]} Nf6+ {[%emt 0:00:00]} 51. Rxf6+ {[%emt 0:00:00]} Rxf6 {[%emt 0:00:00]} 52. Rf5 {[%emt 0:00:00]} 1-0

[Event "Vienna Chess Open 2019"]
[Site "Vienna"]
[Date "2019.08.21"]
[Round "6.1"]
[White "Ibanez Aullana, Ramon"]
[Black "Haldorsen, Benjamin"]
[Result "1/2-1/2"]
[ECO "A33"]
[WhiteElo "2316"]
[BlackElo "2452"]
[Annotator "ChessBase"]
[PlyCount "73"]
[EventDate "2019.08.17"]
[EventType "swiss"]
[EventCountry "AUT"]
[SourceTitle "playchess.com"]
[Source "ChessBase"]
[SourceQuality "1"]
[TimeControl "40/5400+30:1800+30"]

1. c4 {[%emt 0:00:07]} c5 {[%emt 0:00:00]} 2. Nf3 {[%emt 0:01:02]} Nc6 {[%emt 0:00:00]} 3. d4 {[%emt 0:01:00]} cxd4 {[%emt 0:00:00]} 4. Nxd4 {[%emt 0:00:02]} Nf6 {[%emt 0:00:00]} 5. Nc3 {[%emt 0:00:25]} e6 {[%emt 0:00:01]} 6. e3 {[%emt 0:24:22]} Bb4 {[%emt 0:00:43]} 7. Ndb5 {[%emt 0:02:10]} d5 {[%emt 0:09:53]} 8. a3 {[%emt 0:01:08]} Bxc3+ {[%emt 0:03:23]} 9. Nxc3 {[%emt 0:00:14]} O-O {[%emt 0:01:24]} 10. cxd5 {[%emt 0:06:03]} exd5 {[%emt 0:02:49]} 11. Be2 {[%emt 0:00:59]} Be6 {[%emt 0:19:36]} 12. O-O {[%emt 0:00:49]} Rc8 {[%emt 0:01:27]} 13. Nb5 {[%emt 0:03:09]} Qb6 {[%emt 0:03:05]} 14. Nd4 {[%emt 0:05:50]} Nxd4 {[%emt 0:03:34]} 15. Qxd4 {[%emt 0:01:16]} Qxd4 {[%emt 0:02:27]} 16. exd4 {[%emt 0:00:17]} Bf5 {[%emt 0:00:23]} 17. Bd1 {[%emt 0:11:33]} Rc4 {[%emt 0:06:30]} 18. Be3 {[%emt 0:01:47]} Rfc8 {[%emt 0:00:16]} 19. f3 {[%emt 0:09:38]} h6 {[%emt 0:10:13]} 20. g4 {[%emt 0:10:22]} Bc2 {[%emt 0:01:42]} 21. Be2 {[%emt 0:02:19]} R4c6 {[%emt 0:00:02]} 22. Rfc1 {[%emt 0:00:31]} a6 {[%emt 0:00:56]} 23. Kf2 {[%emt 0:01:25]} Nd7 {[%emt 0:05:06]} 24. b4 {[%emt 0:01:24]} Ba4 {[%emt 0:04:37]} 25. Rxc6 {[%emt 0:02:11]} Rxc6 {[%emt 0:00:09]} 26. Rc1 {[%emt 0:00:21]} Rxc1 {[%emt 0:05:22]} 27. Bxc1 {[%emt 0:00:01]} Nb8 {[%emt 0:00:47]} 28. Bd3 {[%emt 0:00:50]} Nc6 {[%emt 0:00:12]} 29. Be3 {[%emt 0:03:15]} Bb5 {[%emt 0:01:02]} 30. Bf5 {[%emt 0:00:45]} Ne7 {[%emt 0:02:08]} 31. Bc2 {[%emt 0:00:21]} Bd7 {[%emt 0:01:22]} 32. Bf4 {[%emt 0:00:36]} f6 {[%emt 0:04:12]} 33. h4 {[%emt 0:01:31]} g5 {[%emt 0:00:37]} 34. Bd6 {[%emt 0:01:10]} Nc8 {[%emt 0:00:10]} 35. Bc7 {[%emt 0:00:02]} Kf7 {[%emt 0:04:27]} 36. Kg3 {[%emt 0:00:27]} Na7 {[%emt 0:00:58]} 37. Bd3 {[%emt 0:02:27]} 1/2-1/2

[Event "Vienna Chess Open 2019"]
[Site "Vienna"]
[Date "2019.08.21"]
[Round "6.2"]
[White "Blohberger, Felix"]
[Black "Miedema, David"]
[Result "1-0"]
[ECO "C08"]
[WhiteElo "2467"]
[BlackElo "2371"]
[Annotator "ChessBase"]
[PlyCount "88"]
[EventDate "2019.08.17"]
[EventType "swiss"]
[EventCountry "AUT"]
[SourceTitle "playchess.com"]
[Source "ChessBase"]
[SourceQuality "1"]
[TimeControl "40/5400+30:1800+30"]

1. e4 {[%emt 0:00:00]} e6 {[%emt 0:00:00]} 2. d4 {[%emt 0:00:00]} d5 {[%emt 0:00:00]} 3. Nd2 {[%emt 0:00:00]} c5 {[%emt 0:00:05]} 4. exd5 {[%emt 0:00:05]} exd5 {[%emt 0:00:06]} 5. Ngf3 {[%emt 0:00:13]} Nf6 {[%emt 0:00:08]} 6. Bb5+ {[%emt 0:00:18]} Bd7 {[%emt 0:00:07]} 7. Bxd7+ {[%emt 0:00:05]} Qxd7 {[%emt 0:00:07]} 8. O-O {[%emt 0:00:53]} cxd4 {[%emt 0:00:10]} 9. Nxd4 {[%emt 0:01:51]} Be7 {[%emt 0:00:27]} 10. N2b3 {[%emt 0:06:11]} O-O {[%emt 0:02:19]} 11. Bg5 {[%emt 0:02:13]} Nc6 {[%emt 0:00:37]} 12. Re1 {[%emt 0:00:39]} h6 {[%emt 0:01:39]} 13. Bh4 {[%emt 0:10:48]} Rfe8 {[%emt 0:09:12]} 14. c3 {[%emt 0:04:57]} g5 {[%emt 0:05:27]} 15. Bg3 {[%emt 0:03:44]} Ne4 {[%emt 0:00:08]} 16. Nxc6 {[%emt 0:04:57]} Qxc6 {[%emt 0:00:20]} 17. Be5 {[%emt 0:01:26]} Ba3 {[%emt 0:01:48]} 18. bxa3 {[%emt 0:05:14]} Rxe5 {[%emt 0:01:42]} 19. Qd4 {[%emt 0:00:57]} Ree8 {[%emt 0:03:02]} 20. Re3 {[%emt 0:09:29]} Nd6 {[%emt 0:10:17]} 21. Rd3 {[%emt 0:02:51]} Nb5 {[%emt 0:04:16]} 22. Qxd5 {[%emt 0:01:56]} Qxd5 {[%emt 0:01:46]} 23. Rxd5 {[%emt 0:00:05]} Nxc3 {[%emt 0:00:10]} 24. Rd7 {[%emt 0:11:57]} b6 {[%emt 0:03:54]} 25. Kf1 {[%emt 0:00:43]} Red8 {[%emt 0:02:55]} 26. Rb7 {[%emt 0:03:46]} Rd3 {[%emt 0:00:48]} 27. g3 {[%emt 0:06:17]} Nxa2 {[%emt 0:00:56]} 28. Rxa2 {[%emt 0:01:03]} Rxb3 {[%emt 0:00:05]} 29. a4 {[%emt 0:03:27]} a5 {[%emt 0:02:14]} 30. Rc2 {[%emt 0:02:22]} Re8 {[%emt 0:26:40]} 31. Rcc7 {[%emt 0:06:40]} Rb1+ {[%emt 0:00:45]} 32. Kg2 {[%emt 0:00:07]} Ree1 {[%emt 0:02:33]} 33. Rxf7 {[%emt 0:00:44]} Rg1+ {[%emt 0:02:08]} 34. Kf3 {[%emt 0:05:08]} Rb4 {[%emt 0:00:13]} 35. Rg7+ {[%emt 0:03:08]} Kf8 {[%emt 0:00:05]} 36. h3 {[%emt 0:01:37]} Rc1 {[%emt 0:04:12]} 37. Rgf7+ {[%emt 0:00:22]} Kg8 {[%emt 0:00:14]} 38. Rg7+ {[%emt 0:00:07]} Kf8 {[%emt 0:00:04]} 39. Rh7 {[%emt 0:00:35]} Kg8 {[%emt 0:00:09]} 40. Rxh6 {[%emt 0:01:11]} g4+ {[%emt 0:00:39]} 41. hxg4 {[%emt 0:30:44]} Rc3+ {[%emt 0:30:03]} 42. Kg2 {[%emt 0:00:48]} Rxg4 {[%emt 0:00:04]} 43. Rhxb6 {[%emt 0:00:00]} Rc5 {[%emt 0:00:00]} 44. Ra6 {[%emt 0:00:00]} Kh8 {[%emt 0:00:00]} 1-0

[Event "Vienna Chess Open 2019"]
[Site "Vienna"]
[Date "2019.08.21"]
[Round "6.2"]
[White "Froewis, Georg"]
[Black "Dastan, Muhammed Batuhan"]
[Result "1/2-1/2"]
[ECO "D10"]
[WhiteElo "2429"]
[BlackElo "2582"]
[Annotator "ChessBase"]
[PlyCount "139"]
[EventDate "2019.08.17"]
[EventType "swiss"]
[EventCountry "AUT"]
[SourceTitle "playchess.com"]
[Source "ChessBase"]
[SourceQuality "1"]
[TimeControl "40/5400+30:1800+30"]

1. c4 {[%emt 0:00:00]} c6 {[%emt 0:00:08]} 2. d4 {[%emt 0:00:09]} d5 {[%emt 0:00:31]} 3. cxd5 {[%emt 0:00:00]} cxd5 {[%emt 0:02:28]} 4. Bg5 {[%emt 0:00:00]} Nc6 {[%emt 0:01:08]} 5. Nc3 {[%emt 0:00:00]} f6 {[%emt 0:02:14]} 6. Bd2 {[%emt 0:00:00]} e5 {[%emt 0:01:53]} 7. e4 {[%emt 0:00:14]} dxe4 {[%emt 0:02:42]} 8. dxe5 {[%emt 0:02:49]} Nxe5 {[%emt 0:00:51]} 9. Qa4+ {[%emt 0:06:06]} Bd7 {[%emt 0:00:11]} 10. Qxe4 {[%emt 0:02:23]} Bc6 {[%emt 0:00:06]} 11. Bb5 {[%emt 0:05:05]} Qxd2+ {[%emt 0:00:51]} 12. Kxd2 {[%emt 0:00:56]} O-O-O+ {[%emt 0:00:05]} 13. Kc2 {[%emt 0:07:45]} Bxe4+ {[%emt 0:00:41]} 14. Nxe4 {[%emt 0:00:13]} Ne7 {[%emt 0:17:22]} 15. Ne2 {[%emt 0:06:16]} Nd5 {[%emt 0:06:34]} 16. Rad1 {[%emt 0:04:41]} f5 {[%emt 0:29:06]} 17. N4c3 {[%emt 0:04:34]} Nb4+ {[%emt 0:00:39]} 18. Kb1 {[%emt 0:00:06]} a6 {[%emt 0:03:10]} 19. Rxd8+ {[%emt 0:01:13]} Kxd8 {[%emt 0:00:03]} 20. Rd1+ {[%emt 0:00:39]} Kc7 {[%emt 0:02:07]} 21. a3 {[%emt 0:03:18]} Nbc6 {[%emt 0:00:51]} 22. Bxc6 {[%emt 0:03:11]} Nxc6 {[%emt 0:02:05]} 23. Nf4 {[%emt 0:00:46]} Be7 {[%emt 0:01:06]} 24. Ne6+ {[%emt 0:03:26]} Kc8 {[%emt 0:00:04]} 25. Nd5 {[%emt 0:23:21]} g6 {[%emt 0:00:26]} 26. Nd4 {[%emt 0:06:11]} Bd6 {[%emt 0:03:11]} 27. Nb6+ {[%emt 0:04:41]} Kc7 {[%emt 0:00:04]} 28. Ne6+ {[%emt 0:00:13]} Kxb6 {[%emt 0:00:13]} 29. Rxd6 {[%emt 0:00:02]} Re8 {[%emt 0:01:34]} 30. b4 {[%emt 0:01:57]} Ka7 {[%emt 0:00:38]} 31. f4 {[%emt 0:01:00]} Re7 {[%emt 0:03:38]} 32. Kb2 {[%emt 0:01:09]} Kb8 {[%emt 0:00:07]} 33. Kc3 {[%emt 0:00:28]} Na7 {[%emt 0:00:16]} 34. Rd8+ {[%emt 0:01:32]} Nc8 {[%emt 0:00:01]} 35. Nc5 {[%emt 0:00:35]} Kc7 {[%emt 0:00:23]} 36. Rh8 {[%emt 0:00:56]} Nd6 {[%emt 0:00:59]} 37. a4 {[%emt 0:02:18]} Kb6 {[%emt 0:06:24]} 38. Kd4 {[%emt 0:01:58]} a5 {[%emt 0:02:46]} 39. Kd5 {[%emt 0:01:20]} Ne4 {[%emt 0:01:57]} 40. bxa5+ {[%emt 0:01:25]} Kxa5 {[%emt 0:00:02]} 41. Ra8+ {[%emt 0:31:32]} Kb6 {[%emt 0:35:36]} 42. Ne6 {[%emt 0:00:00]} Nf6+ {[%emt 0:00:00]} 43. Ke5 {[%emt 0:00:00]} Ne8 {[%emt 0:00:00]} 44. Rc8 {[%emt 0:00:00]} Ka5 {[%emt 0:00:00]} 45. Kd5 {[%emt 0:00:00]} Kxa4 {[%emt 0:00:00]} 46. Nc5+ {[%emt 0:00:00]} Kb5 {[%emt 0:00:00]} 47. Ne6 {[%emt 0:00:00]} Nf6+ {[%emt 0:00:00]} 48. Ke5 {[%emt 0:00:00]} Ne4 {[%emt 0:00:00]} 49. h3 {[%emt 0:00:00]} b6 {[%emt 0:00:00]} 50. Kd5 {[%emt 0:00:00]} Rd7+ {[%emt 0:00:00]} 51. Ke5 {[%emt 0:00:00]} Nd6 {[%emt 0:00:00]} 52. Nd4+ {[%emt 0:00:00]} Kb4 {[%emt 0:00:00]} 53. Nc2+ {[%emt 0:00:00]} Kb5 {[%emt 0:00:00]} 54. Nd4+ {[%emt 0:00:00]} Ka6 {[%emt 0:00:00]} 55. Ke6 {[%emt 0:00:00]} Nxc8 {[%emt 0:00:28]} 56. Kxd7 {[%emt 0:00:00]} Na7 {[%emt 0:01:03]} 57. g4 {[%emt 0:00:00]} Nb5 {[%emt 0:00:20]} 58. Nxf5 {[%emt 0:01:01]} Nc3 {[%emt 0:00:57]} 59. Ne3 {[%emt 0:02:33]} b5 {[%emt 0:00:54]} 60. f5 {[%emt 0:00:27]} gxf5 {[%emt 0:00:53]} 61. gxf5 {[%emt 0:00:02]} Ne4 {[%emt 0:02:35]} 62. Nd5 {[%emt 0:00:06]} Ka5 {[%emt 0:02:10]} 63. Ke7 {[%emt 0:08:01]} b4 {[%emt 0:00:27]} 64. f6 {[%emt 0:01:57]} Nxf6 {[%emt 0:01:02]} 65. Kxf6 {[%emt 0:00:02]} b3 {[%emt 0:00:15]} 66. Ne3 {[%emt 0:01:30]} Kb4 {[%emt 0:00:08]} 67. Nd1 {[%emt 0:00:07]} Kc4 {[%emt 0:00:02]} 68. Ke5 {[%emt 0:00:25]} Kd3 {[%emt 0:00:03]} 69. Nb2+ {[%emt 0:00:08]} Kc3 {[%emt 0:00:13]} 70. Na4+ {[%emt 0:00:06]} 1/2-1/2

[Event "Vienna Chess Open 2019"]
[Site "Vienna"]
[Date "2019.08.21"]
[Round "6.2"]
[White "Menezes, Christoph"]
[Black "Chittka, Julius"]
[Result "1-0"]
[ECO "D85"]
[WhiteElo "2420"]
[BlackElo "2317"]
[Annotator "NA"]
[PlyCount "59"]
[EventDate "2019.08.17"]
[EventType "swiss"]
[EventCountry "AUT"]
[SourceTitle "playchess.com"]
[Source "ChessBase"]
[SourceQuality "1"]
[TimeControl "40/5400+30:1800+30"]

1. d4 {[%emt 0:00:39]} Nf6 {[%emt 0:00:00]} 2. c4 {[%emt 0:00:18]} g6 {[%emt 0:00:00]} 3. Nc3 {[%emt 0:00:10]} d5 {[%emt 0:00:00]} 4. cxd5 {[%emt 0:00:09]} Nxd5 {[%emt 0:00:00]} 5. e4 {[%emt 0:00:15]} Nxc3 {[%emt 0:00:00]} 6. bxc3 {[%emt 0:00:02]} Bg7 {[%emt 0:00:06]} 7. Qa4+ {[%emt 0:00:12]} Qd7 {[%emt 0:00:47]} 8. Qa3 {[%emt 0:00:21]} b6 {[%emt 0:01:21]} 9. Nf3 {[%emt 0:00:33]} Bb7 {[%emt 0:01:16]} 10. Bd3 {[%emt 0:00:31]} O-O {[%emt 0:02:38]} 11. O-O {[%emt 0:00:30]} c5 {[%emt 0:02:42]} 12. Bf4 {[%emt 0:00:30]} Qg4 {[%emt 0:11:14]} 13. Be5 {[%emt 0:03:45]} Nd7 {[%emt 0:06:56]} 14. h3 {[%emt 0:06:21]} Qh5 {[%emt 0:00:17]} 15. Bxg7 {[%emt 0:15:34]} Kxg7 {[%emt 0:00:11]} 16. Rfe1 {[%emt 0:00:13]} e6 {[%emt 0:08:13]} 17. Qb2 {[%emt 0:08:58]} Rac8 {[%emt 0:06:52]} 18. a4 {[%emt 0:07:14]} cxd4 {[%emt 0:08:40]} 19. cxd4 {[%emt 0:00:15]} Qa5 {[%emt 0:01:29]} 20. Ra3 {[%emt 0:09:12]} Kg8 {[%emt 0:04:51]} 21. Bb5 {[%emt 0:13:53]} Rfd8 {[%emt 0:06:54]} 22. Ree3 {[%emt 0:03:39]} Nb8 {[%emt 0:05:50]} 23. Ne5 {[%emt 0:02:57]} Nc6 {[%emt 0:02:04]} 24. Bxc6 {[%emt 0:02:29]} Bxc6 {[%emt 0:00:08]} 25. Ng4 {[%emt 0:00:25]} Bxa4 {[%emt 0:05:30]} 26. d5 {[%emt 0:01:52]} Qb5 {[%emt 0:05:45]} 27. Nh6+ {[%emt 0:03:34]} Kf8 {[%emt 0:00:06]} 28. Qf6 {[%emt 0:00:09]} Qb1+ {[%emt 0:03:18]} 29. Kh2 {[%emt 0:00:05]} Be8 {[%emt 0:00:26]} 30. Rxa7 {[%emt 0:00:16]} 1-0

[Event "Vienna Chess Open 2019"]
[Site "Vienna"]
[Date "2019.08.21"]
[Round "6.3"]
[White "Stanec, Nikolaus"]
[Black "Gilevych, Artem"]
[Result "1-0"]
[ECO "D26"]
[WhiteElo "2483"]
[BlackElo "2424"]
[Annotator "ChessBase"]
[PlyCount "57"]
[EventDate "2019.08.17"]
[EventType "swiss"]
[EventCountry "AUT"]
[SourceTitle "playchess.com"]
[Source "ChessBase"]
[SourceQuality "1"]
[TimeControl "40/5400+30:1800+30"]

1. c4 {[%emt 0:00:36]} e6 {[%emt 0:00:00]} 2. Nf3 {[%emt 0:00:16]} d5 {[%emt 0:00:00]} 3. e3 {[%emt 0:00:07]} Nf6 {[%emt 0:01:14]} 4. d4 {[%emt 0:00:25]} dxc4 {[%emt 0:01:36]} 5. Bxc4 {[%emt 0:00:09]} a6 {[%emt 0:00:03]} 6. O-O {[%emt 0:00:33]} b5 {[%emt 0:00:03]} 7. Be2 {[%emt 0:00:50]} Bb7 {[%emt 0:00:04]} 8. a4 {[%emt 0:00:34]} b4 {[%emt 0:00:14]} 9. b3 {[%emt 0:02:48]} Nbd7 {[%emt 0:05:56]} 10. Bb2 {[%emt 0:00:10]} Ne4 {[%emt 0:00:16]} 11. Nfd2 {[%emt 0:03:08]} Nd6 {[%emt 0:20:13]} 12. Bf3 {[%emt 0:02:17]} Be7 {[%emt 0:00:52]} 13. Bxb7 {[%emt 0:01:01]} Nxb7 {[%emt 0:00:04]} 14. Nc4 {[%emt 0:00:17]} Nf6 {[%emt 0:06:02]} 15. Nbd2 {[%emt 0:03:01]} O-O {[%emt 0:08:33]} 16. Qe2 {[%emt 0:04:27]} c5 {[%emt 0:07:29]} 17. Rfd1 {[%emt 0:01:23]} cxd4 {[%emt 0:03:03]} 18. Bxd4 {[%emt 0:02:15]} Bc5 {[%emt 0:00:21]} 19. Bxf6 {[%emt 0:02:01]} Qxf6 {[%emt 0:01:48]} 20. Ne4 {[%emt 0:01:11]} Qe7 {[%emt 0:05:51]} 21. Ne5 {[%emt 0:04:48]} Qc7 {[%emt 0:11:13]} 22. Nd7 {[%emt 0:04:40]} Rfc8 {[%emt 0:04:07]} 23. Rac1 {[%emt 0:07:06]} Qa5 {[%emt 0:01:07]} 24. Qc4 {[%emt 0:01:10]} Rc6 {[%emt 0:12:18]} 25. Ndxc5 {[%emt 0:01:20]} Nxc5 {[%emt 0:01:02]} 26. Nxc5 {[%emt 0:00:07]} Rac8 {[%emt 0:00:09]} 27. Nb7 {[%emt 0:03:35]} Qb6 {[%emt 0:02:28]} 28. Qxc6 {[%emt 0:00:24]} Rxc6 {[%emt 0:00:04]} 29. Rxc6 {[%emt 0:00:07]} 1-0